bitfinex-derivatives/quotes_SOLF0:USTF0_20250415
["timestamp","ask_amount","ask_price","bid_price","bid_amount"]
[1744685856391,7.7475,129.09,129.06,7.7489]
[1744685857092,7.80098418,129.09,129.06,7.8019871]
[1744685857687,7.7481,129.08,129.06,0.0530871]
[1744685858191,0.05348418,129.09,129.06,0.0530871]
[1744685858691,7.80058418,129.09,129.06,7.8014871]
[1744685859892,7.80058418,129.09,129.06,0.0530871]
[1744685860192,7.7478,129.08,129.06,0.0530871]
[1744685863592,7.80078418,129.09,129.06,7.8017871]
[1744685863795,0.05348418,129.09,129.06,7.8017871]
[1744685865195,7.80068418,129.09,129.06,7.8017871]
[1744685867693,0.05348418,129.09,129.07,38.1071653]
[1744685868392,0.05348418,129.09,129.08,7.7477]
[1744685868601,4.0198,129.15,129.07,38.1071653]
[1744685868801,4.0198,129.15,129.09,8.4271653]
[1744685869001,4.0198,129.15,129.1,29.68]
[1744685869201,31.694,129.16,129.11,8.4271653]
[1744685869400,2.014,129.16,129.11,8.4271653]
[1744685869702,0.05816194,129.15,129.12,0.05012294]
[1744685870101,0.05816194,129.15,129.12,7.79512294]
[1744685871102,7.80176194,129.15,129.12,0.05012294]
[1744685872097,0.05816194,129.15,129.12,0.05012294]
[1744685872399,4.28206194,129.15,129.12,0.05012294]
[1744685872597,7.7447,129.13,129.12,0.05012294]
[1744685872803,4.28206194,129.15,129.12,0.05012294]
[1744685874205,7.7441,129.14,129.12,0.05012294]
[1744685874404,4.28206194,129.15,129.12,0.05012294]
[1744685874703,7.7447,129.13,129.12,0.05012294]
[1744685875505,7.7443,129.14,129.12,0.05012294]
[1744685877006,7.7447,129.13,129.12,0.05012294]
[1744685877305,7.7447,129.13,129.07,29.66]
[1744685877306,38.0871653,129.13,129.07,29.66]
[1744685877498,8.4271653,129.11,129.04,29.66]
[1744685877704,4.1729,129.1,129.04,29.66]
[1744685878002,7.748,129.08,129.04,37.4098]
[1744685878204,0.0552397,129.07,129.05,0.04881867]
[1744685878400,7.7489,129.06,129.05,0.04881867]
[1744685878997,0.0552397,129.07,129.05,7.79831867]
[1744685879707,0.0552397,129.07,129.06,7.7489]
[1744685880208,0.0552397,129.07,129.05,7.79801867]
[1744685881305,0.0552397,129.07,129.05,0.04881867]
[1744685882007,7.8038397,129.07,129.05,0.04881867]
[1744685882415,0.0552397,129.07,129.06,8.4271653]
[1744685882616,4.0843,129.16,129.06,16.8543306]
[1744685882907,11.8273,129.16,129.12,7.7449]
[1744685883106,11.8273,129.16,129.11,29.66]
[1744685883312,4.0843,129.16,129.11,29.66]
[1744685883512,11.8277,129.16,129.11,37.4054]
[1744685883706,0.05755519,129.15,129.12,0.0521934]
[1744685884013,0.05755519,129.15,129.12,7.7970934]
[1744685885309,0.05755519,129.15,129.13,7.7447]
[1744685885909,0.05755519,129.15,129.14,7.7441]
[1744685886113,2.1415,129.21,129.14,29.66]
[1744685886715,7.7412,129.19,129.15,7.7431]
[1744685886910,2.1415,129.21,129.14,29.66]
[1744685887113,0.05041637,129.18,129.16,0.05835406]
[1744685887418,1.986,129.24,129.17,29.66]
[1744685887607,1.986,129.24,129.18,13.4641895]
[1744685887807,1.986,129.24,129.17,29.66]
[1744685888512,0.0491251,129.22,129.19,0.05447477]
[1744685889213,0.0491251,129.22,129.19,7.79537477]
[1744685890015,0.0491251,129.22,129.19,0.05447477]
[1744685890509,29.6891251,129.22,129.14,29.64]
[1744685890711,7.7417,129.19,129.14,37.3839]
[1744685890913,29.64,129.22,129.14,37.3839]
[1744685891114,7.7407,129.2,129.14,37.3839]
[1744685891416,29.64,129.22,129.15,7.7433]
[1744685891715,0.05404739,129.2,129.17,0.05726841]
[1744685892112,2.03594739,129.2,129.17,0.05726841]
[1744685892314,2.03594739,129.2,129.14,29.64]
[1744685892814,7.7433,129.16,129.14,29.64]
[1744685893316,7.79815051,129.16,129.14,29.69771613]
[1744685894717,7.7435,129.15,129.14,29.69771613]
[1744685895016,7.7435,129.15,129.14,0.05771613]
[1744685895415,7.79795051,129.16,129.14,0.05771613]
[1744685895617,0.05485051,129.16,129.14,0.05771613]
[1744685895816,7.7435,129.15,129.14,0.05771613]
[1744685896014,0.05485051,129.16,129.09,7.7466]
[1744685896213,29.64,129.16,129.08,29.64]
[1744685896410,7.7448,129.13,129.09,7.7467]
[1744685896717,2.1385,129.15,129.08,29.64]
[1744685897117,0.05413656,129.13,129.1,0.05324819]
[1744685898018,7.79923656,129.13,129.1,0.05324819]
[1744685898313,0.05413656,129.13,129.1,0.05324819]
[1744685898712,7.7454,129.12,129.1,0.05324819]
[1744685900417,0.05413656,129.13,129.1,0.05324819]
[1744685900418,7.79913656,129.13,129.1,0.05324819]
[1744685900617,0.05413656,129.13,129.1,0.05324819]
[1744685901617,7.7457,129.12,129.1,0.05324819]
[1744685903512,7.79893656,129.13,129.1,0.05324819]
[1744685904620,29.69413656,129.13,129.1,0.05324819]
[1744685904820,2.0654,129.12,129.1,0.05324819]
[1744685905022,2.0654,129.12,129.05,37.3893]
[1744685905517,7.7475,129.09,129.05,37.3893]
[1744685905726,2.0654,129.12,129.05,29.64]
[1744685906221,7.7481,129.08,129.07,0.05363462]
[1744685906415,43.18373325,129.1,129.02,29.66]
[1744685906719,43.1241895,129.1,129.02,29.66]
[1744685906928,7.7481,129.08,129.04,7.7499]
[1744685907624,2.0654,129.12,129.05,29.69720279]
[1744685908020,2.0654,129.12,129.08,7.7473]
[1744685908220,29.64,129.14,129.08,29.64]
[1744685908419,359.1385,129.15,129.08,29.64]
[1744685908724,0.05426303,129.13,129.1,7.7988196]
[1744685909719,0.05426303,129.13,129.11,7.7458]
[1744685910022,0.05426303,129.13,129.1,0.0524196]
[1744685910224,0.05426303,129.13,129.11,29.64]
[1744685911033,7.79936303,129.13,129.1,0.0524196]
[1744685912235,7.79936303,129.13,129.1,7.7989196]
[1744685913138,0.05426303,129.13,129.1,7.7989196]
[1744685913335,0.05426303,129.13,129.11,7.7458]
[1744685913732,357.0,129.28,129.12,56.568379]
[1744685913940,358.34755755,129.27,129.17,13.4641895]
[1744685914138,357.0,129.27,129.19,13.4641895]
[1744685914338,357.0,129.27,129.2,29.64]
[1744685914741,0.05882204,129.25,129.22,0.05105234]
[1744685915240,0.05882204,129.25,129.23,37.3782]
[1744685915630,0.05882204,129.25,129.23,29.64]
[1744685916041,0.05882204,129.25,129.23,43.1041895]
[1744685916438,217.35454591,129.32,129.23,43.1041895]
[1744685917038,225.08824591,129.32,129.24,7.7381]
[1744685917443,13.4641895,129.38,129.25,13.4641895]
[1744685917633,43.0841895,129.38,129.27,0.05236817]
[1744685917838,43.0841895,129.38,129.27,13.4641895]
[1744685918743,0.05704836,129.34,129.31,0.05164467]
[1744685918937,43.14123786,129.34,129.25,29.62]
[1744685919137,1.9996,129.33,129.25,29.62]
[1744685919335,1.9996,129.33,129.26,13.4641895]
[1744685919540,29.62,129.37,129.28,13.4641895]
[1744685919742,31.6196,129.37,129.29,29.62]
[1744685920138,0.05297311,129.34,129.32,0.05706634]
[1744685923644,7.78527311,129.34,129.32,0.05706634]
[1744685924242,7.7327,129.33,129.32,0.05706634]
[1744685924735,13.51716261,129.34,129.26,29.62]
[1744685924942,13.4641895,129.3,129.21,586.92]
[1744685925143,2.1666,129.29,129.21,586.92]
[1744685925843,0.05046473,129.26,129.24,0.05554814]
[1744685926042,7.7375,129.25,129.24,0.05554814]
[1744685927838,7.7347,129.3,129.24,50.87973764]
[1744685928045,374.5969895,129.37,129.24,43.13973764]
[1744685928243,13.4641895,129.35,129.21,557.3]
[1744685928442,13.4641895,129.3,129.2,29.62]
[1744685928734,43.0841895,129.3,129.21,29.62]
[1744685929043,7.738,129.25,129.24,0.04968874]
[1744685933136,7.738,129.25,129.21,29.62]
[1744685933137,7.7393,129.22,129.21,29.62]
[1744685934545,7.79502214,129.23,129.21,29.62]
[1744685934843,0.05612214,129.23,129.21,29.62]
[1744685935743,7.7393,129.22,129.21,29.62]
[1744685942851,7.7399,129.21,129.2,0.05501682]
[1744685943651,7.7396,129.22,129.2,0.05501682]
[1744685943842,0.05612214,129.23,129.21,30.14]
[1744685944350,30.14,129.3,129.21,30.14]
[1744685944552,3.9857,129.29,129.21,32.3086]
[1744685944746,358.9879,129.34,129.24,13.4641895]
[1744685944950,358.9879,129.34,129.26,13.4641895]
[1744685945150,4.1516,129.35,129.28,13.4641895]
[1744685945451,0.05207675,129.33,129.3,7.78683903]
[1744685947048,7.78497675,129.33,129.3,7.78683903]
[1744685947252,0.05207675,129.33,129.3,7.78683903]
[1744685947753,15.4491,129.47,129.32,13.4641895]
[1744685947952,6.2746,129.43,129.33,30.14]
[1744685948153,7.7302,129.38,129.33,30.14]
[1744685948855,0.05624001,129.37,129.34,0.05702237]
[1744685949154,0.05624001,129.37,129.34,7.78902237]
[1744685949952,7.78664001,129.37,129.34,0.05702237]
[1744685950854,0.05624001,129.37,129.34,0.05702237]
[1744685951049,0.05624001,129.37,129.34,13.52121187]
[1744685951555,0.05624001,129.37,129.36,7.7309]
[1744685951756,0.05624001,129.37,129.36,37.8509]
[1744685952154,0.05624001,129.37,129.36,30.12]
[1744685954362,0.05624001,129.37,129.34,7.78872237]
[1744685954553,0.05624001,129.37,129.35,30.12]
[1744685954750,1.34505749,129.48,129.35,30.12]
[1744685954954,6.3355,129.47,129.4,13.4641895]
[1744685955150,6.3355,129.47,129.41,30.12]
[1744685955356,2.1476,129.47,129.43,7.7262]
[1744685955561,2.1476,129.47,129.44,30.12]
[1744685956058,2.19637566,129.47,129.44,30.17040055]
[1744685957563,9.92117566,129.47,129.44,30.17040055]
[1744685957756,0.04877566,129.47,129.44,30.17040055]
[1744685958359,0.04877566,129.47,129.44,37.89640055]
[1744685958662,0.04877566,129.47,129.44,30.17040055]
[1744685959055,0.04877566,129.47,129.44,37.89640055]
[1744685959258,0.04877566,129.47,129.44,30.17040055]
[1744685961359,6.2576,129.55,129.46,13.4641895]
[1744685961560,6.2576,129.55,129.47,30.1]
[1744685961762,6.2576,129.55,129.47,37.8242]
[1744685962457,0.05336165,129.52,129.5,0.05851588]
[1744685962659,7.77516165,129.52,129.5,0.05851588]
[1744685962962,0.05336165,129.52,129.5,0.05851588]
[1744685963162,7.722,129.51,129.5,0.05851588]
[1744685963361,0.05336165,129.52,129.5,0.05851588]
[1744685965068,0.05336165,129.52,129.51,31.36]
[1744685965861,7.7144,129.64,129.51,39.08]
[1744685966058,7.7144,129.64,129.58,13.4641895]
[1744685966360,7.7111,129.7,129.64,7.7141]
[1744685966662,6.0526,129.73,129.64,31.36]
[1744685966967,31.36,129.72,129.62,13.4641895]
[1744685967464,0.05481688,129.68,129.66,0.05512507]
[1744685968561,7.76711688,129.68,129.66,0.05512507]
[1744685968758,0.05481688,129.68,129.66,0.05512507]
[1744685968967,0.05481688,129.68,129.45,15.451]
[1744685968968,21.23900638,129.68,129.57,31.34]
[1744685969168,13.4641895,129.62,129.52,13.4641895]
[1744685969364,35.5113,129.61,129.51,1.9989]
[1744685969565,7.7182,129.58,129.51,1.9989]
[1744685970070,0.0590974,129.56,129.53,0.04882339]
[1744685971673,7.7202,129.54,129.53,0.04882339]
[1744685971879,13.4641895,129.53,129.42,31.34]
[1744685972279,7.7238,129.48,129.43,7.7266]
[1744685972571,7.7238,129.48,129.42,31.34]
[1744685972777,31.34,129.5,129.42,31.34]
[1744685972977,0.05743893,129.46,129.44,0.05835999]
[1744685973377,7.7256,129.45,129.44,0.05835999]
[1744685973980,0.05743893,129.46,129.44,0.05835999]
[1744685976076,7.7256,129.45,129.44,0.05835999]
[1744685976881,7.7275,129.42,129.38,31.34]
[1744685977278,44.8041895,129.47,129.38,31.34]
[1744685977472,7.7286,129.4,129.38,31.34]
[1744685978284,0.05467341,129.4,129.38,31.39839899]
[1744685980185,0.05467341,129.4,129.38,39.12789899]
[1744685981585,0.05467341,129.4,129.38,31.39839899]
[1744685984992,0.05467341,129.4,129.38,39.12809899]
[1744685985488,0.05467341,129.4,129.38,31.39839899]
[1744685985788,0.05467341,129.4,129.39,7.7291]
[1744685986688,2.1927,129.46,129.41,7.7276]
[1744685987088,2.1927,129.46,129.39,13.4641895]
[1744685987490,7.7263,129.44,129.4,7.7281]
[1744685987790,0.05705252,129.43,129.41,0.05687812]
[1744685988191,7.78395252,129.43,129.41,0.05687812]
[1744685989590,0.05705252,129.43,129.41,0.05687812]
[1744685989988,370.4641895,129.5,129.42,31.36]
[1744685989989,357.0,129.5,129.42,31.36]
[1744685990190,7.7239,129.48,129.44,13.4641895]
[1744685990389,357.0,129.5,129.44,13.4641895]
[1744685990589,392.4774,129.54,129.42,44.8241895]
[1744685990791,7.7241,129.48,129.43,7.7262]
[1744685991191,0.05312695,129.47,129.44,0.05785237]
[1744685991594,7.7254,129.46,129.44,0.05785237]
[1744685991793,0.05312695,129.47,129.44,0.05785237]
[1744685992090,0.05312695,129.47,129.44,7.78365237]
[1744685992290,0.05312695,129.47,129.44,0.05785237]
[1744685993196,7.77752695,129.47,129.44,0.05785237]
[1744685993697,0.05312695,129.47,129.44,7.78385237]
[1744685994592,0.05312695,129.47,129.44,0.05785237]
[1744685995898,0.05312695,129.47,129.44,7.78385237]
[1744685996091,0.05312695,129.47,129.44,0.05785237]
[1744685996598,7.77752695,129.47,129.44,7.78375237]
[1744685997306,7.77752695,129.47,129.44,0.05785237]
[1744685997507,0.05312695,129.47,129.44,0.05785237]
[1744685998004,7.77782695,129.47,129.44,0.05785237]
[1744685999304,7.7251,129.46,129.44,0.05785237]
[1744685999507,0.05312695,129.47,129.44,0.05785237]
[1744686000003,0.05312695,129.47,129.46,7.725]
[1744686000706,0.05312695,129.47,129.44,13.52204187]
[1744686001197,0.05312695,129.47,129.45,7.7252]
[1744686001503,0.05312695,129.47,129.46,45.1641895]
[1744686001708,2.1504,129.52,129.46,45.1641895]
[1744686002007,2.1504,129.52,129.46,31.7]
[1744686002503,2.1504,129.52,129.48,7.7237]
[1744686002703,0.05047707,129.5,129.48,0.05272541]
[1744686003105,13.4641895,129.59,129.48,13.51691491]
[1744686003305,13.4641895,129.57,129.48,13.4641895]
[1744686003505,13.4641895,129.57,129.46,45.1641895]
[1744686004103,7.7219,129.52,129.47,7.7238]
[1744686004312,0.05903752,129.53,129.5,0.05318438]
[1744686004511,31.7,129.55,129.5,0.05318438]
[1744686004811,0.05249484,129.53,129.5,0.05318438]
[1744686005512,7.722,129.51,129.5,0.05318438]
[1744686005715,0.05249484,129.53,129.5,0.05318438]
[1744686006308,7.722,129.51,129.5,0.05318438]
[1744686006509,1.9967,129.52,129.46,31.7]
[1744686006904,1.9967,129.52,129.46,39.4249]
[1744686007110,1.9967,129.52,129.46,31.7]
[1744686007513,0.05262865,129.5,129.48,0.05123121]
[1744686007713,13.4641895,129.49,129.4,31.7]
[1744686007910,13.4641895,129.47,129.4,31.7]
[1744686008112,31.7,129.46,129.4,31.7]
[1744686008308,13.4641895,129.45,129.37,31.7]
[1744686008810,13.4641895,129.45,129.4,0.05260611]
[1744686008811,0.04894753,129.42,129.4,0.05260611]
[1744686009511,0.04894753,129.42,129.37,31.7]
[1744686010513,7.77744753,129.42,129.37,31.7]
[1744686010712,7.77744753,129.42,129.38,0.05388459]
[1744686011014,7.7287,129.41,129.38,0.05388459]
[1744686011414,0.04894753,129.42,129.38,0.05388459]
[1744686011615,7.77744753,129.42,129.38,7.78438459]
[1744686011813,0.04894753,129.42,129.38,0.05388459]
[1744686012317,7.7297,129.4,129.38,0.05388459]
[1744686013715,7.7299,129.39,129.38,0.05388459]
[1744686014114,0.04894753,129.42,129.38,0.05388459]
[1744686014419,7.7297,129.4,129.38,0.05388459]
[1744686015617,1.9813,129.41,129.38,0.05388459]
[1744686016321,7.7293,129.4,129.38,0.05388459]
[1744686017127,9.7102,129.41,129.38,0.05388459]
[1744686017720,0.04894753,129.42,129.38,31.77388459]
[1744686019023,0.04894753,129.42,129.4,7.7288]
[1744686019622,0.04894753,129.42,129.41,7.7287]
[1744686020422,0.04894753,129.42,129.4,7.7291]
[1744686021021,0.04894753,129.42,129.41,7.7287]
[1744686021222,4.0346,129.46,129.39,13.4641895]
[1744686021722,7.7267,129.45,129.41,7.7284]
[1744686022322,7.7267,129.45,129.42,0.05847293]
[1744686022323,0.04997139,129.44,129.42,0.05847293]
[1744686022621,0.04997139,129.44,129.42,7.78647293]
[1744686023122,0.04997139,129.44,129.42,0.05847293]
[1744686023723,0.04997139,129.44,129.38,31.72]
[1744686024321,0.04997139,129.44,129.38,39.4505]
[1744686024622,0.04997139,129.44,129.38,31.72]
[1744686024922,13.4641895,129.43,129.4,0.05884364]
[1744686025122,7.7305,129.38,129.35,32.06]
[1744686025321,45.5241895,129.41,129.35,32.06]
[1744686025513,2.1503,129.4,129.35,32.06]
[1744686025719,2.1503,129.4,129.36,7.7317]
[1744686026220,0.0581927,129.39,129.37,0.05027864]
[1744686026823,7.7882927,129.39,129.37,0.05027864]
[1744686027122,0.0581927,129.39,129.32,32.06]
[1744686027325,7.7306,129.38,129.34,7.7324]
[1744686028224,7.7317,129.36,129.35,0.05109238]
[1744686028423,7.7317,129.36,129.28,15.3746895]
[1744686028424,32.11535314,129.37,129.29,32.06]
[1744686028622,32.06,129.37,129.29,32.06]
[1744686028923,7.7319,129.36,129.31,7.7343]
[1744686029123,357.0,129.39,129.32,13.4641895]
[1744686029327,7.7316,129.37,129.33,39.7931]
[1744686029519,7.78863246,129.37,129.34,0.05449255]
[1744686031725,7.78863246,129.37,129.34,7.78729255]
[1744686033127,7.78863246,129.37,129.34,0.05449255]
[1744686033323,0.05703246,129.37,129.34,13.51868205]
[1744686033825,0.05703246,129.37,129.35,7.7318]
[1744686035229,0.05703246,129.37,129.36,7.7317]
[1744686035827,6.313,129.43,129.37,7.7308]
[1744686036024,6.313,129.43,129.37,39.7908]
[1744686036326,32.06,129.47,129.38,13.4641895]
[1744686036526,34.0732,129.47,129.38,13.4641895]
[1744686037032,7.78293014,129.44,129.41,0.05120446]
[1744686037427,0.05603014,129.44,129.41,32.11120446]
[1744686037629,0.05603014,129.44,129.41,39.83980446]
[1744686038331,0.05603014,129.44,129.42,7.728]
[1744686038723,0.05603014,129.44,129.42,8.3781142]
[1744686038930,393.1476,129.5,129.42,8.3781142]
[1744686039126,2.1102,129.51,129.44,13.39425086]
[1744686039422,2.1102,129.51,129.46,7.7257]
[1744686039622,2.1102,129.51,129.45,32.06]
[1744686039831,7.7242,129.49,129.45,32.06]
[1744686040031,7.78203254,129.49,129.47,0.05786429]
[1744686040432,0.05783254,129.49,129.47,0.05786429]
[1744686041133,7.78193254,129.49,129.47,0.05786429]
[1744686041431,0.05783254,129.49,129.47,0.05786429]
[1744686041627,7.7218,129.53,129.47,0.05786429]
[1744686041826,389.06,129.56,129.48,13.39425086]
[1744686042032,389.06,129.56,129.49,32.06]
[1744686042724,0.05445935,129.54,129.51,0.05210369]
[1744686042930,7.77585935,129.54,129.51,0.05210369]
[1744686044133,7.7218,129.53,129.51,0.05210369]
[1744686044334,0.05445935,129.54,129.51,0.05210369]
[1744686045035,7.77575935,129.54,129.51,0.05210369]
[1744686045240,0.05445935,129.54,129.51,0.05210369]
[1744686046337,7.77595935,129.54,129.51,0.05210369]
[1744686046636,0.05445935,129.54,129.51,0.05210369]
[1744686047039,13.39425086,129.53,129.46,32.04]
[1744686047233,4.1702,129.52,129.46,32.04]
[1744686047634,4.1702,129.52,129.42,32.04]
[1744686047935,7.7205,129.55,129.48,13.39425086]
[1744686048133,4.3187,129.59,129.5,13.39425086]
[1744686048336,0.05366883,129.53,129.51,32.04]
[1744686048536,4.3187,129.59,129.52,13.39425086]
[1744686049039,17.71295086,129.59,129.48,15.45935086]
[1744686049234,357.0,129.58,129.49,32.04]
[1744686049437,7.721,129.55,129.5,7.7233]
[1744686049630,357.0,129.58,129.5,7.7233]
[1744686049838,0.05131228,129.54,129.51,0.04957979]
[1744686050642,0.05131228,129.54,129.51,7.77217979]
[1744686051141,0.05131228,129.54,129.51,0.04957979]
[1744686051439,7.77241228,129.54,129.51,0.04957979]
[1744686052743,7.77241228,129.54,129.51,7.77227979]
[1744686053842,7.77241228,129.54,129.51,0.04957979]
[1744686054046,7.7216,129.53,129.51,0.04957979]
[1744686054346,0.05131228,129.54,129.51,7.77227979]
[1744686054540,0.05131228,129.54,129.51,0.04957979]
[1744686055146,0.05131228,129.54,129.52,7.7217]
[1744686058453,0.05131228,129.54,129.53,7.7216]
[1744686058654,0.05131228,129.54,129.51,0.04957979]
[1744686059055,0.05131228,129.54,129.52,7.7217]
[1744686059252,0.05131228,129.54,129.51,8.41418368]
[1744686059753,0.05131228,129.54,129.52,7.7221]
[1744686059945,0.05131228,129.54,129.53,39.90460389]
[1744686060151,0.05131228,129.54,129.53,47.62620389]
[1744686060449,2.0717,129.62,129.53,55.98920778]
[1744686060662,365.36460389,129.65,129.6,16.08160389]
[1744686060663,7.7154,129.64,129.6,16.08160389]
[1744686060853,2.0837,129.65,129.6,39.90460389]
[1744686061056,369.58400389,129.69,129.6,39.90460389]
[1744686061354,369.58400389,129.69,129.62,8.36460389]
[1744686061355,363.3031,129.69,129.62,8.36460389]
[1744686061554,0.05807621,129.66,129.63,0.05136392]
[1744686062054,0.05807621,129.66,129.63,31.57136392]
[1744686062652,0.05807621,129.66,129.63,39.93596781]
[1744686063157,0.05807621,129.66,129.63,31.57136392]
[1744686064457,0.05807621,129.66,129.65,7.7144]
[1744686064953,0.05807621,129.66,129.63,31.57136392]
[1744686065756,0.05807621,129.66,129.65,7.7144]
[1744686066059,0.05807621,129.66,129.63,31.57136392]
[1744686066351,0.05807621,129.66,129.63,39.28676392]
[1744686066854,0.05807621,129.66,129.63,31.57136392]
[1744686067555,358.986,129.72,129.63,31.57136392]
[1744686067556,1.986,129.72,129.65,13.35960304]
[1744686067957,7.7115,129.7,129.66,7.7136]
[1744686068158,1.986,129.72,129.67,31.52]
[1744686068451,7.7126,129.68,129.67,31.52]
[1744686069255,7.76388019,129.69,129.67,31.52]
[1744686070158,0.05168019,129.69,129.67,31.52]
[1744686072466,0.05168019,129.69,129.68,7.7126]
[1744686072662,0.05168019,129.69,129.67,31.52]
[1744686073468,0.05168019,129.69,129.68,7.7126]
[1744686073967,0.05168019,129.69,129.67,39.233]
[1744686074166,0.05168019,129.69,129.67,31.52]
[1744686074766,0.05168019,129.69,129.67,39.2332]
[1744686075268,0.05168019,129.69,129.67,31.52]
[1744686075757,0.05168019,129.69,129.68,7.7126]
[1744686076670,0.05168019,129.69,129.67,39.2332]
[1744686076867,0.05168019,129.69,129.67,31.52]
[1744686077368,0.05168019,129.69,129.67,39.233]
[1744686077668,0.05168019,129.69,129.67,31.52]
[1744686078471,0.05168019,129.69,129.67,39.2327]
[1744686078673,0.05168019,129.69,129.67,31.52]
[1744686082076,7.7126,129.68,129.67,31.52]
[1744686082274,0.05168019,129.69,129.67,31.52]
[1744686082573,7.76408019,129.69,129.67,31.52]
[1744686082775,0.05168019,129.69,129.67,31.52]
[1744686083676,7.7126,129.68,129.67,31.52]
[1744686084173,8.34809263,129.68,129.63,32.28]
[1744686084877,8.34809263,129.66,129.6,32.28]
[1744686085077,8.34809263,129.64,129.6,32.28]
[1744686085281,8.40613568,129.64,129.62,0.05670594]
[1744686085578,16.12613568,129.64,129.57,32.28]
[1744686085779,8.34809263,129.62,129.57,32.28]
[1744686086081,7.7185,129.59,129.57,32.28]
[1744686086276,8.34809263,129.62,129.57,32.28]
[1744686086671,0.05211504,129.61,129.58,0.05814964]
[1744686087179,7.7176,129.6,129.58,0.05814964]
[1744686087978,7.718,129.59,129.58,0.05814964]
[1744686088575,7.7199,129.56,129.54,32.28]
[1744686088777,8.34809263,129.6,129.54,32.28]
[1744686088983,7.7193,129.57,129.54,32.28]
[1744686089277,8.34809263,129.6,129.54,32.28]
[1744686089478,7.7188,129.58,129.54,40.0005]
[1744686089678,0.0591153,129.58,129.56,0.05472518]
[1744686093188,7.7192,129.57,129.56,0.05472518]
[1744686094783,7.721,129.54,129.51,587.48]
[1744686094991,2.0583,129.57,129.51,587.48]
[1744686095483,7.7206,129.55,129.51,595.2026]
[1744686095688,2.0583,129.57,129.51,587.48]
[1744686095989,7.721,129.54,129.53,0.05477056]
[1744686097087,0.05057837,129.55,129.53,0.05477056]
[1744686097783,8.34809263,129.54,129.44,561.5371]
[1744686097982,0.05057837,129.55,129.45,32.3]
[1744686097983,8.34809263,129.52,129.45,32.3]
[1744686098179,357.0,129.56,129.48,8.34809263]
[1744686098480,357.0,129.56,129.52,8.34809263]
[1744686098681,40.64809263,129.58,129.44,561.5371]
[1744686098881,40.64809263,129.58,129.48,8.34809263]
[1744686099078,0.05209529,129.52,129.5,0.05040379]
[1744686099284,8.34809263,129.56,129.49,32.3]
[1744686099480,0.04937284,129.52,129.5,0.05795371]
[1744686099681,2.0469,129.53,129.46,32.3]
[1744686099891,7.7228,129.51,129.5,0.0562506]
[1744686100086,0.05692422,129.52,129.5,0.0562506]
[1744686101192,7.77952422,129.52,129.5,0.0562506]
[1744686101495,0.05692422,129.52,129.5,0.0562506]
[1744686102096,8.40501685,129.52,129.46,32.3]
[1744686102395,7.724,129.49,129.46,32.3]
[1744686102695,8.34809263,129.52,129.46,32.3]
[1744686103186,0.0498806,129.5,129.48,0.04926208]
[1744686104285,8.39797323,129.5,129.46,32.3]
[1744686104488,8.39797323,129.5,129.43,32.3]
[1744686104682,8.34809263,129.48,129.43,32.3]
[1744686105395,0.05208367,129.47,129.44,0.05392916]
[1744686105888,7.7269,129.45,129.44,0.05392916]
[1744686106995,7.7281,129.43,129.4,32.32]
[1744686107294,8.34809263,129.46,129.4,32.32]
[1744686107484,8.34809263,129.44,129.4,32.32]
[1744686108194,0.05018153,129.43,129.41,0.0543712]
[1744686108590,7.7285,129.42,129.41,0.0543712]
[1744686112897,7.7297,129.4,129.37,32.32]
[1744686113296,8.34809263,129.44,129.37,32.32]
[1744686113493,8.34809263,129.51,129.41,8.34809263]
[1744686113799,361.1077,129.52,129.43,8.34809263]
[1744686113997,0.05508834,129.49,129.46,0.05314699]
[1744686114699,7.77918834,129.49,129.46,0.05314699]
[1744686115090,7.7246,129.48,129.46,0.05314699]
[1744686115498,8.40318097,129.49,129.46,0.05314699]
[1744686115698,8.34809263,129.47,129.41,31.72]
[1744686116102,8.34809263,129.45,129.41,31.72]
[1744686116395,7.7281,129.42,129.41,31.72]
[1744686118504,7.7287,129.41,129.4,0.0516878]
[1744686118707,8.40556894,129.43,129.4,0.0516878]
[1744686119102,7.7286,129.42,129.4,0.0516878]
[1744686119304,8.40556894,129.43,129.4,0.0516878]
[1744686119509,7.7287,129.41,129.4,0.0516878]